Cogmind - Beta 15 @@@ ROGUE MODE // 2025.08.18 @ 20:33:34 Player: Cracklepappy Result: Destroyed by S-10 Pest with Light Assault Rifle Performance ------------- Evolutions (0) 0 Regions Visited (2) 400 Robots Destroyed (39) 195 Value Destroyed (585) 585 Prototype IDs (3) 60 Alien Tech Used (0) 0 Bonus (0) 0 TOTAL SCORE: 1240 Bonus ------- None Cogmind --------- Core Integrity 0/250 Matter 220/300 Energy 125/125 System Corruption 0% Temperature Cool (0) Movement Rolling (95) Ox1 Location -10/Mines Parts ------- > --- POWER (1) -------- Light Ion Engine > --- PROPULSION (2) --- Wheel Wheel > --- UTILITY (2) ------ Large Storage Unit Seismic Detector > --- WEAPON (2) ------- Particle Gun Light Cannon > --- INVENTORY (15) --- Light Ion Engine Wheel Wheel Wheel Heat Sink Improved Heat Sink Large Matter Pod (150) Seismic Detector Particle Gun Particle Gun Light Assault Rifle Light Assault Rifle Light Assault Rifle Mining Laser Plasma Cutter Peak State ------------ > --- POWER ------------ Light Ion Engine > --- PROPULSION ------- Wheel Wheel > --- UTILITY ---------- Improved Heat Sink Large Storage Unit > --- WEAPON ----------- Particle Gun Particle Gun > --- INVENTORY -------- Light Ion Engine Wheel Wheel Wheel Wheel Heat Sink Seismic Detector Seismic Detector Particle Gun Light Assault Rifle Light Assault Rifle Light Assault Rifle Mining Laser Plasma Cutter [Rating: 12] Favorites ----------- Power Light Ion Engine Engine Light Ion Engine Propulsion Wheel Wheel Wheel Utility Large Storage Unit Device Improved Heat Sink Storage Large Storage Unit Weapon Particle Gun Energy Gun Particle Gun Ballistic Gun Assault Rifle Ballistic Cannon Light Cannon Special Weapon Mining Laser Build | -11 -10 -10 ------- Run | Yrd Mat Min Slots Evolved . | . . . Power . | . . . Propulsion . | . . . Utility . | . . . Weapon . | . . . Parts Attached 28 | 7 20 1 Power 5 | 1 3 1 Engine 5 | 1 3 1 Core . | . . . Reactor . | . . . Propulsion 10 | 2 8 . Treads . | . . . Leg . | . . . Wheel 10 | 2 8 . Hover . | . . . Flight . | . . . Utility 5 | 2 3 . Device 2 | 1 1 . Storage 3 | 1 2 . Processor . | . . . Hackware . | . . . Protection . | . . . Artifact . | . . . Weapon 8 | 2 6 . Energy Gun 3 | . 3 . Energy Cannon . | . . . Ballistic Gun 3 | 2 1 . Ballistic Cannon 1 | . 1 . Launcher . | . . . Special Weapon 1 | . 1 . Impact Weapon . | . . . Slashing Weapon . | . . . Piercing Weapon . | . . . Special Melee Weapon . | . . . Unidentified Prototypes . | . . . Parts Lost 7 | . 7 . Power 2 | . 2 . Propulsion 3 | . 3 . Utility . | . . . Weapon 2 | . 2 . Highest Loss Streak 6 | . 6 . To Critical Strikes 1 | . 1 . Average Backups 11 | 4 11 15 Power . | . . 1 Propulsion 2 | 2 3 3 Utility 2 | . 3 4 Weapon 4 | 1 4 6 Tool/Special . | . . . Unused Backups 15 | 1 4 10 Power 1 | . . 1 Propulsion 7 | 1 3 3 Utility 4 | . 1 3 Weapon 2 | . . 2 Tool/Special 1 | . . 1 Average Slot Usage (%) 96 | . 95 100 Engine 13 | . 12 14 Wheel 26 | . 26 28 Device 14 | . 14 14 Storage 14 | . 14 14 Energy Gun 19 | . 20 14 Ballistic Gun 2 | . 3 . Ballistic Cannon 3 | . 1 14 Peak Build Rating 12 | 7 12 11 Average Rating 9 | 6 10 10 On Entrance 6 | . 7 11 Naked Turns . | . . . Heaviest Build 30 | 14 30 30 Greatest Support 26 | 20 26 20 Greatest Overweight (x) 1 | . 1 1 Average Overweight (x) . | . . 1 Largest Inventory Capacity 15 | 8 15 15 Average Capacity 12 | 7 12 15 Most Carried 15 | 8 15 15 Average Carried 11 | 4 11 15 Final Capacity 15 | 8 15 15 Final Carried 15 | 8 15 15 Class Distribution -------------------- 86% | Mutant 13% | Scavenger-Mutant Dominant Class ---------------- Mutant | -10/Materials Mutant | -10/Mines Resources | -11 -10 -10 ----------- Run | Yrd Mat Min Matter Collected 781 | 386 363 32 Remotely . | . . . Salvage Created 1169 | 249 888 32 Parts 76 | 23 46 7 Haulers Intercepted 2 | . 2 . Recyclers Shooed 3 | . 2 1 Parts Field Recycled . | . . . Retrieved Matter . | . . . Parts Self-Destructed . | . . . Prevented . | . . . Kills | -11 -10 -10 ------- Run | Yrd Mat Min Combat Hostiles Destroyed 16 | . 16 . Guns 15 | . 15 . Classes Destroyed 9 | 3 5 1 Worker 5 | 2 3 . Builder 1 | . . 1 Tunneler 8 | 6 1 1 Hauler 2 | . 2 . Recycler 4 | 1 3 . Mechanic 1 | . 1 . Watcher 2 | . 2 . Swarmer 6 | . 6 . Grunt 10 | . 10 . Best Kill Streak 8 | 8 4 2 Combat Bots Only 3 | . 3 . Max Kills in Single Turn 1 | 1 1 1 Gunslinging . | . . . Exploded . | . . . Melee . | . . . Uniques/NPCs Destroyed . | . . . Combat | -11 -10 -10 -------- Run | Yrd Mat Min Hostile Shots Fired 123 | . 122 1 Missed 25 | . 25 . Hits 98 | . 97 1 Projectile 98 | . 97 1 Critical Strikes 1 | . 1 . Damage Taken 992 | . 983 9 Core 251 | . 242 9 Absorbed by Shields . | . . . Regen/Repaired (Parts) 55 | . 55 . Core Remaining (%) 100 | 100 . . Volleys Fired 127 | 29 91 7 Largest 2 | 2 2 2 Hottest 130 | 40 130 95 Shots Fired 246 | 58 174 14 Gun 234 | 58 169 7 Cannon 8 | . 1 7 Launcher . | . . . Special 4 | . 4 . Kinetic 95 | 58 30 7 Thermal 151 | . 144 7 Explosive . | . . . Electromagnetic . | . . . Robot Hit Streak 13 | 13 9 3 Robot Miss Streak 7 | 7 5 4 Penetration Max . | . . . Secondary Targets 3 | . 3 . Max Gunslinging Chain 1 | . 1 . Shots Hit Robots 144 | 35 102 7 Core Hits 47 | 11 34 2 Critical Kills 2 | 1 1 . Critical Parts Destroyed 1 | 1 . . Critical Strikes 8 | 2 6 . Burn 5 | . 5 . Destroy 3 | 2 1 . Melee Attacks . | . . . Impact . | . . . Slashing . | . . . Piercing . | . . . Sneak Attacks . | . . . Combat Hostiles . | . . . Follow-up Attacks . | . . . Damage Inflicted 2028 | 365 1552 111 Guns 1957 | 365 1542 50 Cannons 61 | . . 61 Explosions . | . . . Melee . | . . . Ramming 10 | . 10 . Kinetic 590 | 365 164 61 Thermal 1428 | . 1378 50 Explosive . | . . . Electromagnetic . | . . . Impact . | . . . Slashing . | . . . Piercing . | . . . Highest Corruption . | . . . Average Corruption . | . . . Corruption Purged . | . . . Corruption Blocked . | . . . Overload Shots . | . . . Overflow Damage . | . . . Projectiles . | . . . Explosions . | . . . Melee . | . . . Knockbacks 1 | . . 1 Impact . | . . . Kinetic 1 | . . 1 Secondary . | . . . Self-Inflicted Damage 5 | . 5 . Shots . | . . . Rammed 1 | . 1 . Targets Rammed 1 | . 1 . Kicked . | . . . Crushed . | . . . Highest Temperature 300 | . 300 66 Average Temperature 89 | . 96 25 Received Heat Transfer 336 | . 336 . Effects 1 | . 1 . Energy Bleed 1 | . 1 . Siege Activations . | . . . Martial Activations . | . . . Shielding Activations . | . . . Robots Disrupted . | . . . Combat Hostiles . | . . . Robots Corrupted . | . . . Combat Hostiles . | . . . Parts Fried . | . . . Impact Corruptions . | . . . Robots Melted 1 | . 1 . Combat Hostiles 1 | . 1 . Parts Melted 4 | . 4 . Heat Transferred 3737 | . 3626 111 Parts Sabotaged . | . . . Parts Stolen . | . . . Parts Stripped . | . . . Power Chain Reactions . | . . . Alert | -11 -10 -10 ------- Run | Yrd Mat Min Maximum Alert Level 1 | . 1 . Low Security (%) 88 | 100 84 100 Level 1 11 | . 15 . Level 2 . | . . . Level 3 . | . . . Level 4 . | . . . Level 5 . | . . . High Security . | . . . Max Security . | . . . Peak Influence 229 | 20 229 60 Initial 60 | . 3 60 Average 108 | 3 146 18 Influence Increases 739 | 45 684 10 Destroy 0b10 Robot/C 320 | . 320 . Destroy 0b10 Robot/NC 115 | 45 60 10 Destroy Leader 68 | . 68 . Successful Hack 51 | . 51 . Disable Machine 30 | . 30 . Destroy Structure 5 | . 5 . Lose Combat Pursuer 150 | . 150 . Influence Decreases 739 | 40 535 164 Entered New Map 96 | . 2 94 Time Decay 573 | 40 463 70 Lost Part 70 | . 70 . Squads Dispatched 2 | . 2 . Investigation 1 | . 1 . Extermination . | . . . Reinforcement 1 | . 1 . Assault . | . . . Garrison . | . . . Intercept . | . . . Searches Triggered . | . . . Construction Impeded . | . . . Haulers Reinforced . | . . . Active Scanning Responses . | . . . Cargo Convoy Interrupts . | . . . Stealth | -11 -10 -10 --------- Run | Yrd Mat Min Distress Signals 3 | . 3 . Communications Jammed . | . . . Distress Signals . | . . . Times Spotted 29 | . 28 1 Peak Tracking Total 8 | . 8 . Tactical Retreats 4 | . 4 . Traps | -11 -10 -10 ------- Run | Yrd Mat Min Traps Triggered 1 | . 1 . Indirectly . | . . . Trap Hack Attempts . | . . . Triggered . | . . . Disarmed . | . . . Reprogrammed . | . . . Reused . | . . . Traps Extracted . | . . . Installed . | . . . Triggered . | . . . Machines | -11 -10 -10 ---------- Run | Yrd Mat Min Machines Disabled 2 | . 2 . Max in Single Turn 1 | . 1 . Machines Repaired . | . . . Machines Dismantled . | . . . Machines Sabotaged . | . . . Overloaded Fab Kills . | . . . Hacking | -11 -10 -10 --------- Run | Yrd Mat Min Machines Accessed 8 | . 8 . Terminals 7 | . 7 . Fabricators . | . . . Repair Stations 1 | . 1 . Recycling Units . | . . . Scanalyzers . | . . . Garrison Access . | . . . Total Hacks 21 | . 21 . Successful 13 | . 13 . Failed 8 | . 8 . Catastrophic 2 | . 2 . Database Lockouts . | . . . Manual 11 | . 11 . Terminals 19 | . 19 . Fabricators . | . . . Repair Stations 2 | . 2 . Recycling Units . | . . . Scanalyzers . | . . . Garrison Access . | . . . Terminal Hacks 5 | . 5 . Robot Schematic 1 | . 1 . Prototype ID Bank 2 | . 2 . Locate Traps 2 | . 2 . Fabricator Hacks . | . . . Repair Station Hacks 2 | . 2 . Scan Component 1 | . 1 . Repair 1 | . 1 . Recycling Unit Hacks . | . . . Scanalyzer . | . . . Garrison Access Hacks . | . . . Unauthorized Hacks 6 | . 6 . Terminals 6 | . 6 . Operators 1 | . 1 . Skim 5 | . 5 . Fabricators . | . . . Repair Stations . | . . . Recycling Units . | . . . Scanalyzers . | . . . Garrison Access . | . . . Data Cores Recovered . | . . . Used . | . . . Hacking Detections 8 | . 8 . Full Trace Events . | . . . Feedback Events . | . . . Feedback Blocked . | . . . Robot Schematics Acquired 1 | . 1 . Robots Built . | . . . Authchips . | . . . Time . | . . . Total Robot Build Rating . | . . . Part Schematics Acquired . | . . . Parts Built . | . . . Authchips . | . . . Time . | . . . Total Part Build Rating . | . . . Parts Repaired 1 | . 1 . Time 16 | . 16 . Parts Recycled . | . . . Recycled Matter . | . . . Retrieved Matter . | . . . Retrieved Components . | . . . Parts Scanalyzed . | . . . Part Schematics Acquired . | . . . Parts Damaged . | . . . Bothacking | -11 -10 -10 ------------ Run | Yrd Mat Min Used RIF Installer . | . . . Robots Hacked . | . . . Non-combat . | . . . Combat . | . . . Robot Hacks Applied . | . . . Relay Couplers Released . | . . . Fabnet Peak Effective % . | . . . Robots Rewired . | . . . Allies Hacked . | . . . Hacks Repelled . | . . . Allies | -11 -10 -10 -------- Run | Yrd Mat Min Total Allies . | . . . Largest Group . | . . . Highest-Rated Group . | . . . Highest-Rated Ally . | . . . Total Orders . | . . . Ally Attacks . | . . . Total Damage . | . . . Kills . | . . . Allies Corrupted . | . . . Allies Melted . | . . . Intel | -11 -10 -10 ------- Run | Yrd Mat Min Active Infowar (turns) 490 | 99 184 207 Seismic 490 | 99 184 207 Robot Analysis Total . | . . . Derelict Logs Recovered 1 | . . 1 Drone Launches . | . . . Drone Recoveries . | . . . Exploration | -11 -10 -10 ------------- Run | Yrd Mat Min Turns Passed 1665 | 233 1202 230 Spaces Moved 1069 | 83 770 216 Core 2 | 2 . . Treads . | . . . Legs . | . . . Wheels 1067 | 81 770 216 Hover . | . . . Flight . | . . . Fastest Speed 50 | 50 80 95 Average Speed 91 | 79 91 95 Slowest Speed 95 | 80 95 95 Overloaded Moves . | . . . Propulsion Burnouts . | . . . Robots Hopped . | . . . Potential Cave-ins . | . . . Cave-ins Triggered . | . . . Exploration Rate (%) 45 | 4 97 36 Regions Visited 2 Branch Regions 1 Pre-discovered Areas . | . . . Known Exits Taken 1 | . 1 . Unknown Exits Taken 1 | 1 . . Scrap Searched . | . . . Spaces Dug 3 | . 3 . Terrain Destroyed 3 | . 3 . Melee . | . . . Projectile 3 | . 3 . AOE . | . . . Terrain Rammed . | . . . Walls Destroyed . | . . . Machines Disabled . | . . . Actions | -11 -10 -10 --------- Run | Yrd Mat Min Total 1504 | 194 1084 226 Wait 233 | 66 167 . Move 1067 | 82 769 216 Hop . | . . . Pick Up 27 | 9 18 . Fast Attach 10 | 7 3 . Attach 5 | . 5 . Detach . | . . . Swap 20 | . 18 2 Drop 14 | 1 12 1 Fire 127 | 29 91 7 Melee . | . . . Ram 1 | . 1 . Kick . | . . . Crush . | . . . Escape Stasis . | . . . Rewire . | . . . Trap . | . . . Miscellaneous . | . . . Route ------- -11/Scrapyard -10/Materials (discovered 6 exits: *Mat x3 / *Min x2 / Sub) -10/Mines History --------- Turn | Location | Event 24 | -11/Scrapyard | Discovered new exit (range 15) 234 | -11/Scrapyard | Entered Materials 308 | -10/Materials | Discovered new exit (range 16) 319 | -10/Materials | Build established: Mutant 441 | -10/Materials | Core integrity fell below 50% 470 | -10/Materials | Lost 6 parts (2p3n1w) 777 | -10/Materials | Discovered new exit (range 4) 831 | -10/Materials | Core integrity fell below 20% 934 | -10/Materials | Discovered new exit (range 7) 1131 | -10/Materials | Discovered new exit (range 14) 1232 | -10/Materials | Repaired Particle Gun 1242 | -10/Materials | Discovered new exit (range 10) 1249 | -10/Materials | Learned location of 1 exit from Storage 1329 | -10/Materials | Identified exit to Subcaves 1398 | -10/Materials | Identified exit to Materials 1398 | -10/Materials | Identified exit to Mines 1436 | -10/Materials | Entered Mines 1504 | -10/Mines | Learned Materials terminal intel 1666 | -10/Mines | Destroyed by S-10 Pest with Light Assault Rifle Last Messages --------------- 4x Alarm Trap Map updated. 01267_ Connecting with Terminal... 01292_ Dropped Wheel. 01293_ Acquired Lgt. Cannon. 01329_ >> SKIM: Loading 1 Subcaves entrance... 01398_ >> SKIM: Loading 4 Materials zones... LOCATION=MINES GOAL=ESCAPE 01504_ Acquired derelict log, extracted data. Data stored: Materials terminal intel. 01557_ T-07 Excavator destroyed. 01558_ R-06 Scavenger collects Mining Laser. 01560_ Acquired 23 matter. 01561_ R-06 Scavenger knocked back. 01570_ U-05 Engineer destroyed. 01574_ Acquired 9 matter. 01576_ Dropped Lgt. Ion Engine. 01613_ R-06 Scavenger collects Lgt. Ion Engine. 01616_ R-06 Scavenger collects Terrain Scan Processor. Map ----- +----------------------------------------------------+ | ??????????????# ## #????????????? | | ?????????? ### #???####?????? | | ??????????###### ## ###?# #??## ##????? | | ???????????????# ### ##### ##?# ##???? | | ???????????????# #?# #?# ##??? | | ???????????????# #?######### ### ##?? | | ???????????????# #?????????# """ #?? | | ???????????????# #?????????##### """ #?? | | ???????????????# #?????????????## """ #?? | | ???????????????? ??????????????# ##?? | | ???????????????? ?????????????## #??? | | ???????????????? ???????"?????# ##??? | | ????????????????? ????????s?????# ##???? | | ?????????????????????????? ?????## #????? | | ?????????????????????????? ####### #????? | | ?????????????????????????# #????? | | ?????????????????????????? ####### ##???? | | ?????????????????????????? ?????## #???? | | ???????????????????????### ###### #???? | | ???????????????????????# #???? | | ???????????????????????# ##???? | | ???????????????????????# ##### ###????? | | ???????????????????????# #??# ##??????? | | ???????????????????????# #??# ##??????? | | ??????????????????????## #??## ##?????? | | ??????????????????????# @##### ##????? | | ??????????????????????# k #????? | | ??????????????????????# ####### #????? | | ????????????????????? ??????# ##????? | | ???????????????????? ???????## ##?????? | | ???????????????????###?????????## #??????? | | ????????????????????????????????# #??????? | | ????????????????????????????????# #??????? | | ????????????????????????????????# #??????? | | ????????????????????????????????# #??????? | | ????????????????????????????????# #??????? | | ????????????????????????????????# #??????? | | ????????????????????????????????# #??????? | | ????????????????????????????????#% #??????? | | ????????????????????????????????# #??????? | | ????????????????????????????????# #??????? | | ????????????????????????????????# #####??? | | ????????????????????????????????# #??? | | ????????????????????????????????###### #??? | | ?????????????????????????????????????# #??? | | ?????????????????????????????????????# #??? | | ?????????????????????????????????????# #??? | | ##########??????????????????????????# #??? | | #???????????????????#####??# #??? | | #??????????????????## ##?# #??? | +----------------------------------------------------+ Best States ------------- Heat Dissipation 39 Energy Generation 10 Energy Capacity 250 Matter Stores 300 Matter Capacity 300 Sight Range 16 Terrain Scan Density 10 Evasion (%) 44 Item Schematics ----------------- None Robot Schematics ------------------ M-13 Machinist | -10/Materials | Hacked Fabricated ------------ Nothing Repaired ---------- Particle Gun | 26% | -10/Materials Alien Tech Used ----------------- None Achievements -------------- None Challenges ------------ None Game ------ Seed BlastTacticalReactor Manual? 0 Play Time 00:11:01 Cumulative 1267.8 hours Start 2025.08.18 @ 00:30:10 End 2025.08.18 @ 20:33:34 Sessions 2 Manual Loads 0 Difficulty Rogue Special Mode None Game No. 601 Rogue 601 Adventurer 0 Explorer 0 Win Type - Total 23 Types 10/4/3/0/1/1/2/2/0/0 Lore% 92 Gallery% 90 Achievement% 84 Wizard Run 0 Options --------- Layout 0 ASCII 0 Keyboard 0 Movement Numpad Keybinds 0 Fullscreen 2 Font 24/Smallcaps Map View 76x50 Zoom Use 0% Tactical HUD 1 Map Filters NONE Filters SHIFT_HUE(315) Steam 1 RUN: 42758fed-a16a-42b9-b439-7432b7b7e97c